bitfinex/quotes_ETHUSD_20250602
["timestamp","ask_amount","ask_price","bid_price","bid_amount"]
[1748883120458,9.48324493,2539.6,2538.9,0.8332]
[1748883120657,9.48324493,2539.6,2539.4,3.93791604]
[1748883120827,11.9295178,2539.6,2539.4,3.93791604]
[1748883121029,2.44627287,2539.6,2539.5,3.93778302]
[1748883121273,4.65191222,2539.6,2539.5,3.93778302]
[1748883121563,4.65191222,2539.6,2539.3,3.9380272]
[1748883121732,4.65191222,2539.4,2539.3,3.9380272]
[1748883122137,4.65191222,2539.6,2539.4,3.9378171]
[1748883122533,4.65191222,2539.6,2539.4,3.93779041]
[1748883122737,4.65191222,2539.6,2539.5,3.93778302]
[1748883123351,6.22623594,2539.6,2539.4,3.93785311]
[1748883124429,6.22623594,2539.6,2539.5,3.93778302]
[1748883124841,6.22623594,2539.6,2539.4,3.93788934]
[1748883125362,6.22623594,2539.6,2539.5,3.93778302]
[1748883126069,0.7816,2539.3,2538.4,0.8299]
[1748883126277,4.65191222,2539.0,2538.9,3.93871361]
[1748883126568,4.65191222,2539.2,2539.1,3.93840337]
[1748883127353,0.80162793,2539.5,2538.8,4.76873337]
[1748883127354,4.65191222,2539.4,2539.3,3.9380008]
[1748883128365,4.65191222,2539.4,2539.2,3.93815418]
[1748883128670,0.7888,2539.9,2539.2,0.80725645]
[1748883128857,0.7888,2539.9,2539.6,3.93751825]
[1748883128858,4.65191222,2539.7,2539.6,3.93751825]
[1748883130322,12.67191222,2539.9,2539.7,3.93739007]
[1748883130571,0.02,2539.9,2539.8,3.93731789]
[1748883130886,0.02,2539.9,2539.8,3.94714574]
[1748883131092,0.02,2539.9,2539.8,3.93731789]
[1748883131523,0.02,2539.9,2539.8,4.80452869]
[1748883131723,0.02,2539.9,2539.8,5.60192869]
[1748883132161,0.02,2539.9,2539.8,6.15192869]
[1748883133369,3.93438463,2541.7,2540.8,3.93576826]
[1748883133370,4.65191222,2541.4,2540.8,3.93576826]
[1748883133592,8.0,2541.3,2540.8,4.73386826]
[1748883133810,4.65191222,2541.2,2540.8,4.73386826]
[1748883133987,4.65191222,2541.2,2540.8,3.93576826]
[1748883134384,5.46771222,2541.0,2540.6,3.93596879]
[1748883134597,4.65191222,2540.7,2540.6,3.93596879]
[1748883135287,0.02,2540.9,2540.6,3.93596879]
[1748883136808,0.02,2540.9,2540.5,3.93612843]
[1748883137010,9.4640659,2540.8,2540.4,3.93630927]
[1748883137209,9.4640659,2540.8,2540.5,3.93621293]
[1748883137210,0.04920014,2540.7,2540.5,3.93621293]
[1748883137414,1.00252674,2540.7,2540.5,3.93621293]
[1748883137910,9.4640659,2540.8,2540.6,3.93607809]
[1748883139713,9.4640659,2540.8,2540.5,3.93614669]
[1748883140706,0.04919946,2540.7,2540.3,3.9364257]
[1748883141192,0.8196,2540.6,2540.3,3.9364257]
[1748883141525,0.8196,2540.6,2540.5,3.93623302]
[1748883142227,0.8196,2540.6,2540.4,3.93633619]
[1748883142638,0.8196,2540.6,2540.5,3.93623302]
[1748883142927,10.2963659,2540.8,2540.6,3.93607809]
[1748883143424,10.2963659,2540.8,2540.7,3.93592317]
[1748883143629,12.12800249,2540.8,2540.4,3.93630622]
[1748883143960,0.0492024,2540.7,2540.4,3.93638666]
[1748883144446,3.98515157,2540.7,2540.3,3.93647818]
[1748883144740,0.0492024,2540.7,2540.3,3.9364796]
[1748883145043,2.05607214,2540.7,2540.3,3.9364796]
[1748883145347,0.0492024,2540.7,2540.4,3.93638617]
[1748883147345,0.0492024,2540.7,2540.3,3.93646111]
[1748883147540,3.98513943,2540.7,2540.3,3.93646111]
[1748883147910,0.0492024,2540.7,2540.3,3.93646111]
[1748883148604,0.0492024,2540.7,2540.4,3.93638706]
[1748883149036,12.12800249,2540.8,2540.0,4.73328552]
[1748883149262,10.2963659,2540.8,2540.6,3.93598697]
[1748883149909,9.4640659,2540.8,2540.7,3.93592317]
[1748883150309,0.02,2540.9,2540.8,3.93576826]
[1748883151919,0.02,2540.9,2540.8,4.70916294]
[1748883152338,0.02,2540.9,2540.8,4.69936826]
[1748883152671,0.02,2540.9,2540.8,5.5628974]
[1748883152859,0.02,2540.9,2540.8,5.57268437]
[1748883153617,0.02,2540.9,2540.8,5.5628974]
[1748883153819,0.02,2540.9,2540.8,5.57266936]
[1748883154243,0.02,2540.9,2540.8,5.5628974]
[1748883156249,0.02,2540.9,2540.8,14.12266943]
[1748883156463,0.02,2540.9,2540.8,18.8228974]
[1748883158472,0.02,2540.9,2540.8,14.1128974]
[1748883158837,0.02,2540.9,2540.8,13.5628974]
[1748883159044,0.02,2540.9,2540.8,5.5628974]
[1748883164501,0.02,2540.9,2540.8,5.57266727]
[1748883164710,0.02,2540.9,2540.8,5.5628974]
[1748883166490,0.02,2540.9,2540.8,5.57266755]
[1748883166684,0.02,2540.9,2540.8,14.12266755]
[1748883166884,0.02,2540.9,2540.8,14.1128974]
[1748883167726,0.02,2540.9,2540.8,18.8228974]
[1748883173144,0.02,2540.9,2540.8,19.46526623]
[1748883174418,0.02,2541.9,2541.8,4.69851984]
[1748883174734,0.02,2541.9,2541.8,23.56968423]
[1748883180627,0.02,2542.9,2542.8,3.93267264]
[1748883180801,0.02,2542.9,2542.8,4.48267264]
[1748883181002,0.02,2542.9,2542.8,4.49235708]
[1748883181299,0.02,2542.9,2542.8,5.56063991]
[1748883182146,0.02,2542.9,2542.8,5.55095494]
[1748883183744,0.02,2542.9,2542.8,14.35505494]
[1748883184505,0.02,2542.9,2542.8,14.37873158]
[1748883184935,0.00616,2542.9,2542.8,14.37873158]
[1748883185647,0.00616,2542.9,2542.8,19.08873158]
[1748883186721,0.02,2543.9,2543.8,3.93112666]
[1748883186921,0.02,2543.9,2543.8,3.94078704]
[1748883187119,0.02,2543.9,2543.8,3.93112666]
[1748883187305,0.02,2543.9,2543.8,3.94078702]
[1748883188151,0.02,2543.9,2543.8,3.93112666]
[1748883188450,0.02,2543.9,2543.8,4.7173645]
[1748883189172,0.02,2543.9,2543.8,3.93112666]
[1748883191066,0.02,2543.9,2543.8,12.49078431]
[1748883191268,0.02,2543.9,2543.8,12.48112666]
[1748883193140,0.02,2543.9,2543.8,13.29492666]
[1748883193347,0.02,2544.9,2544.8,5.29338189]
[1748883193592,0.02,2544.9,2544.8,15.1393677]
[1748883193805,0.02,2544.9,2544.8,15.12975689]
[1748883194090,0.02,2544.9,2544.8,15.67975689]
[1748883194477,0.02,2544.9,2544.8,6.21569099]
[1748883194784,0.02,2544.9,2544.8,4.86150264]
[1748883195293,0.02,2544.9,2544.8,4.87554902]
[1748883195456,0.02,2544.9,2544.8,5.42057198]
[1748883195873,0.02,2544.9,2544.8,5.40189099]
[1748883196967,0.02,2544.9,2544.8,4.86150036]
[1748883197192,0.02,2544.9,2544.8,4.85189099]
[1748883197892,0.02,2544.9,2544.8,5.41150428]
[1748883198052,0.02,2544.9,2544.8,5.80285096]
[1748883198492,0.02,2544.9,2544.8,13.81245703]
[1748883198699,0.02,2544.9,2544.8,14.58415096]
[1748883199292,0.02,2544.9,2544.8,24.05997376]
[1748883200004,0.02,2544.9,2544.8,14.59590593]
[1748883200355,0.02,2544.9,2544.8,14.19494596]
[1748883202422,0.02,2544.9,2544.8,14.39494596]
[1748883202918,0.02,2544.9,2544.8,14.78545771]
[1748883203129,0.02,2544.9,2544.8,14.58545771]
[1748883204128,0.02,2545.9,2545.8,4.47803833]
[1748883204314,0.02,2545.9,2545.8,13.68244216]
[1748883204733,0.02,2545.9,2545.8,12.37584216]
[1748883204887,0.02,2545.9,2545.8,4.37584216]
[1748883206119,0.02,2545.9,2545.8,4.38542377]
[1748883206289,0.02,2545.9,2545.8,4.37584216]
[1748883207512,0.02,2545.9,2545.8,3.92803833]
[1748883207722,0.8358,2545.9,2545.8,3.92803833]
[1748883214128,0.8358,2545.9,2545.3,0.01175461]
[1748883214343,0.7835,2545.7,2544.6,0.7709]
[1748883214639,0.7835,2545.7,2545.3,3.92880438]
[1748883214848,0.8189,2545.5,2545.3,3.92880438]
[1748883215202,0.8189,2545.4,2545.2,3.92889635]
[1748883215534,0.8189,2545.4,2545.2,3.9289548]
[1748883215744,0.8189,2545.4,2545.2,3.9289625]
[1748883216508,0.8189,2545.4,2544.4,0.7995]
[1748883216719,0.7645,2545.3,2544.9,3.92932501]
[1748883216909,0.7645,2545.3,2545.0,3.92923519]
[1748883217113,0.7645,2545.3,2544.6,3.92989074]
[1748883217114,0.7645,2545.3,2544.6,3.92981326]
[1748883217309,0.7645,2545.3,2545.0,3.92925196]
[1748883217616,0.7946,2545.1,2544.9,3.92929693]
[1748883217818,0.7946,2545.1,2545.0,3.92927308]
[1748883218445,0.7946,2545.1,2543.9,0.7675]
[1748883218446,0.7613,2545.0,2543.9,0.7675]
[1748883218608,0.7613,2544.7,2544.0,3.93081761]
[1748883218939,0.7613,2544.7,2543.6,4.77004512]
[1748883218940,0.7613,2544.7,2544.5,3.92994431]
[1748883219661,0.7613,2544.7,2544.6,3.92989074]
[1748883219828,0.7613,2544.7,2544.5,3.92995814]
[1748883220154,0.7613,2544.7,2544.4,3.93014723]
[1748883220345,0.7613,2544.7,2544.5,3.92997741]
[1748883220533,0.7613,2544.7,2544.6,3.92989074]
[1748883221651,0.7613,2544.7,2543.9,0.7798]
[1748883221854,0.7613,2544.7,2544.6,3.92989074]
[1748883222365,8.0,2544.8,2544.4,3.93017783]
[1748883222510,0.8277,2544.9,2544.6,3.92982418]
[1748883222710,0.8277,2544.7,2544.6,3.92982418]
[1748883222940,0.8277,2544.7,2544.6,3.92989074]
[1748883224652,0.7745,2545.0,2544.7,3.92973631]
[1748883224954,0.7745,2545.0,2544.7,3.92966296]
[1748883225117,8.04912191,2544.9,2544.5,3.92997001]
[1748883225449,0.7745,2544.8,2544.5,3.92997001]
[1748883226039,0.7745,2544.8,2544.5,3.93002884]
[1748883226250,0.7745,2544.8,2544.0,3.93071659]
[1748883226428,0.7745,2544.8,2544.5,3.92994099]
[1748883226635,0.7745,2544.7,2543.9,3.93097212]
[1748883226834,0.7745,2544.7,2544.6,3.92989074]
[1748883227928,0.7745,2544.7,2544.6,3.92989074]
[1748883228634,0.7652,2545.2,2544.6,3.92989074]
[1748883228848,3.92846314,2545.6,2545.4,3.92860084]
[1748883228849,0.8104,2545.6,2545.4,3.92860084]
[1748883229260,0.8104,2545.6,2545.5,3.92850127]
[1748883232563,0.8104,2545.6,2545.1,3.92906984]
[1748883232883,0.8104,2545.6,2545.5,3.92850127]
[1748883233230,0.8104,2545.6,2544.9,3.92929776]
[1748883233560,0.8104,2545.6,2545.4,3.92856669]
[1748883234064,0.8104,2545.6,2545.5,3.92850127]
[1748883235272,0.02,2545.9,2545.8,3.92803833]
[1748883246202,0.8066,2545.9,2545.8,3.92803833]
[1748883247474,0.8066,2545.9,2545.3,0.7624]
[1748883247678,0.8066,2545.9,2545.7,3.92807383]
[1748883247855,0.8066,2545.9,2545.8,3.92803833]
[1748883248285,0.02,2545.9,2545.8,4.71366122]
[1748883251007,0.02,2545.9,2545.8,5.53294194]
[1748883251324,0.02,2545.9,2545.8,13.53294194]
[1748883251460,0.02,2545.9,2545.8,14.07336122]
[1748883251861,0.02,2545.9,2545.8,18.78336122]
[1748883255966,0.02,2545.9,2545.8,18.23336122]
[1748883257516,0.02,2545.9,2545.8,18.78336122]
[1748883257837,0.02,2545.9,2545.8,14.07336122]
[1748883257972,0.8113,2547.2,2546.8,3.92649599]
[1748883258310,0.8113,2547.2,2546.8,3.93605058]
[1748883258815,1.1997326,2547.8,2546.8,5.25603952]
[1748883259123,1.1997326,2547.8,2546.8,13.24649599]
[1748883259286,0.8113,2547.8,2546.8,13.24649599]
[1748883259477,0.8113,2547.8,2546.8,13.63689156]
[1748883259675,0.02,2547.9,2546.8,14.42251445]
[1748883259879,0.02,2547.9,2546.8,14.03211888]
[1748883260075,0.7508,2547.6,2546.8,14.03211888]
[1748883260277,0.7508,2547.6,2546.8,5.48211888]
[1748883262099,0.7508,2547.6,2546.8,5.49165618]
[1748883262426,0.8206,2547.9,2546.8,23.50572208]
[1748883262730,0.02,2547.9,2546.8,24.05729124]
[1748883263035,0.02,2547.9,2546.8,23.49618478]
[1748883263190,0.02,2547.9,2547.8,3.92495486]
[1748883263528,0.02,2548.9,2548.8,3.92341494]
[1748883263745,0.02,2548.9,2548.8,4.10151494]
[1748883263885,0.02,2548.9,2548.8,12.66096798]
[1748883264081,0.02,2548.9,2548.8,12.65151494]
[1748883264760,0.02,2549.9,2549.8,3.92187622]
[1748883264962,0.02,2549.9,2549.8,4.71569394]
[1748883265325,0.02,2549.9,2549.8,3.92187622]
[1748883265765,0.02,2549.9,2549.8,3.93130041]
[1748883266062,0.02,2549.9,2549.8,3.92187622]
[1748883266232,0.02,2549.9,2549.8,4.47187622]
[1748883266431,0.02,2549.9,2549.8,3.92187622]
[1748883267366,0.02,2549.9,2549.8,3.93129916]
[1748883267565,0.02,2549.9,2549.7,3.92196926]
[1748883267720,1.05030659,2549.9,2549.8,3.92187622]
[1748883268066,0.02,2549.9,2549.8,3.92187622]
[1748883269614,0.02,2549.9,2549.1,11.92292144]
[1748883269820,0.02,2549.9,2549.2,3.92268149]
[1748883269821,10.2445659,2549.8,2549.2,3.92268149]
[1748883270055,10.2445659,2549.8,2548.8,3.92328998]
[1748883270274,10.2445659,2549.8,2549.6,3.92204869]
[1748883270453,11.27102249,2549.8,2549.6,3.92204869]
[1748883270639,11.27102249,2549.8,2549.6,3.92216896]
[1748883271019,11.27102249,2549.8,2549.5,3.92220008]
[1748883271359,11.27102249,2549.8,2548.0,4.48570366]
[1748883271544,11.27102249,2549.8,2549.4,3.92238474]
[1748883271747,9.4640659,2549.5,2548.7,0.7916]
[1748883271950,9.4640659,2549.2,2549.1,3.92281263]
[1748883272149,0.7605,2549.1,2548.8,3.92341494]
[1748883272463,0.7605,2549.1,2549.0,3.9231071]
[1748883272967,8.7605,2549.5,2549.3,3.92249876]
[1748883273265,10.69586682,2549.5,2549.2,3.92272439]
[1748883273420,10.69586682,2549.5,2549.1,3.92290813]
[1748883273421,8.7605,2549.5,2549.3,3.92263662]
[1748883273625,0.7605,2549.5,2549.3,3.92263662]
[1748883273821,0.7605,2549.5,2549.2,3.92271996]
[1748883274365,0.7605,2549.5,2548.2,0.38322784]
[1748883274566,10.07252755,2549.4,2549.0,3.92298538]
[1748883274773,0.8154,2549.2,2548.0,3.92451119]
[1748883274980,10.07252755,2549.0,2547.9,3.92480081]
[1748883275126,10.07252755,2549.0,2548.7,3.92345585]
[1748883275330,10.07252755,2549.0,2548.8,3.92339054]
[1748883275556,11.16132031,2549.0,2548.8,3.92339054]
[1748883275967,1.08879276,2549.0,2548.9,3.92326101]
[1748883276167,0.8154,2549.2,2549.1,3.92295319]
[1748883277650,0.8154,2549.2,2549.0,3.92303246]
[1748883277848,0.8154,2549.2,2548.9,3.92326101]
[1748883278050,0.8154,2549.2,2549.0,3.92309153]
[1748883278269,0.8154,2549.2,2548.2,3.92430547]
[1748883278469,0.88154,2549.1,2548.8,3.92334676]
[1748883278790,0.88154,2549.1,2548.8,3.9233444]
[1748883279407,10.07252755,2549.0,2548.6,3.92360641]
[1748883279547,10.07252755,2549.0,2548.6,3.92362388]
[1748883279740,1.56923326,2549.0,2548.6,3.92362388]
[1748883279957,1.56923326,2549.0,2548.7,3.92354728]
[1748883280471,1.56923326,2549.0,2548.6,3.92370659]
[1748883280778,1.56923326,2549.0,2548.7,3.92354221]
[1748883280986,10.07252755,2549.1,2548.9,3.92325741]
[1748883281182,10.07252755,2549.1,2548.8,0.00948769]
[1748883281183,8.0,2549.1,2549.0,3.9231071]
[1748883281395,8.0,2549.1,2548.8,3.9233243]
[1748883281570,8.0,2549.1,2549.0,3.9231071]
[1748883282383,8.0,2549.1,2548.9,3.92321174]
[1748883282557,8.0,2549.1,2548.8,3.9233448]
[1748883283088,8.0,2549.1,2548.9,3.92325641]
[1748883283335,9.07875796,2549.1,2548.7,3.92342996]
[1748883283615,13.00179234,2549.1,2548.7,3.92355654]
[1748883283780,9.07875796,2549.1,2548.5,3.92377283]
[1748883283984,9.07875796,2549.1,2548.7,3.92356397]
[1748883284181,9.07875796,2549.1,2548.9,3.92325487]
[1748883284382,8.0,2549.1,2548.9,3.92325487]
[1748883284623,8.0,2549.1,2548.8,0.00948118]
[1748883284794,8.0,2549.1,2548.0,3.92449779]
[1748883284795,8.0,2549.1,2549.0,3.9231071]
[1748883286087,0.8154,2549.2,2549.1,3.92295319]
[1748883288185,0.7921,2549.6,2549.5,3.92231852]
[1748883289736,0.7921,2549.6,2549.4,3.92245936]
[1748883290030,0.7921,2549.6,2548.5,0.7923]
[1748883290201,0.7921,2549.6,2549.5,3.92233771]
[1748883290401,0.7921,2549.6,2548.6,4.80295282]
[1748883290613,0.7921,2549.6,2549.4,3.92242566]
[1748883290928,0.7921,2549.6,2548.8,3.92341494]
[1748883291127,4.71432089,2549.6,2549.1,3.92286149]
[1748883291326,4.39378754,2549.5,2549.0,3.92308047]
[1748883291704,4.44281677,2549.5,2549.0,3.92308047]
[1748883292114,8.0,2549.4,2549.0,3.92308047]
[1748883292317,8.47143209,2549.5,2549.1,3.9229478]
[1748883292522,8.47143209,2549.5,2549.1,3.92281199]
[1748883292721,3.11823058,2549.4,2549.0,3.92297332]
[1748883292918,7.0408399,2549.4,2548.9,3.92321116]
[1748883293310,3.11823058,2549.4,2549.1,3.92288315]
[1748883294118,3.16726651,2549.4,2549.0,3.92302897]
[1748883294325,0.7924,2549.4,2548.7,0.00947952]
[1748883294526,0.7924,2549.4,2549.3,3.92264543]
[1748883294727,0.7924,2549.4,2548.5,3.92373543]
[1748883295035,0.7924,2549.4,2549.1,3.92290046]
[1748883295352,0.7924,2549.4,2549.3,3.92264543]
[1748883295497,0.7924,2549.4,2548.5,3.92387679]
[1748883295498,0.7924,2549.4,2549.2,3.92273296]
[1748883295699,9.40204474,2549.3,2549.2,3.92273296]
[1748883296318,10.42148921,2549.3,2549.1,3.92288908]
[1748883296538,10.42148921,2549.3,2549.2,3.9227993]
[1748883297039,10.42148921,2549.3,2549.0,3.92304106]
[1748883297245,10.42148921,2549.3,2549.1,3.92292909]
[1748883297417,9.40204474,2549.3,2549.1,3.92292909]
[1748883297744,0.7924,2549.4,2549.2,3.92271077]
[1748883298044,0.7924,2549.4,2548.3,3.92404693]
[1748883298261,0.7924,2549.4,2549.1,3.92286853]
[1748883298649,9.40204474,2549.2,2549.1,3.92295319]
[1748883298852,9.40204474,2549.2,2548.6,3.92372231]
[1748883299033,9.40204474,2549.2,2548.9,3.92317596]
[1748883299232,9.40204474,2549.2,2549.0,3.9230278]
[1748883299442,9.40204474,2549.2,2548.9,3.92322763]
[1748883299634,9.40204474,2549.2,2549.0,3.92303855]
[1748883299861,9.40204474,2549.2,2548.9,3.92310744]
[1748883300069,9.40204474,2549.2,2548.3,3.92404693]
[1748883300277,9.40204474,2549.2,2548.8,3.9232917]
[1748883300577,9.40204474,2549.2,2548.6,3.92364016]
[1748883300578,9.40204474,2548.9,2548.6,3.92364016]
[1748883300734,9.40204474,2548.9,2548.6,3.92364799]
[1748883300936,9.40204474,2548.9,2548.7,3.9235064]
[1748883301179,9.40204474,2548.9,2548.6,3.92363332]
[1748883301469,0.94020447,2548.8,2547.9,0.8159]
[1748883301669,9.40204474,2548.9,2548.6,3.92371867]
[1748883301869,0.8069,2548.8,2548.0,3.92464678]
[1748883302032,0.8069,2548.8,2548.5,3.92385041]
[1748883302432,0.8069,2548.8,2548.7,3.92356887]
[1748883302755,0.8069,2548.3,2547.5,0.8159]
[1748883302949,9.40204474,2548.1,2547.8,3.92484863]
[1748883303133,9.40204474,2548.1,2547.5,1.29003261]
[1748883303134,9.40204474,2548.1,2547.6,3.92515379]
[1748883303475,13.32657803,2548.1,2547.6,3.92514234]
[1748883303643,9.40204474,2548.1,2547.6,0.00952662]
[1748883303982,8.0,2548.1,2548.0,3.92464678]
[1748883304280,8.0,2548.1,2547.8,3.92488456]
[1748883304438,8.0,2548.1,2547.9,3.92476611]
[1748883304764,8.0,2548.1,2547.8,3.92488126]
[1748883304992,8.0,2548.1,2547.8,3.92495486]
[1748883305286,8.0,2548.1,2548.0,3.92464678]
[1748883305437,0.8069,2548.3,2548.2,3.92433874]
[1748883305638,0.7749,2548.7,2548.5,3.92385693]
[1748883305838,8.7749,2548.7,2548.6,3.92372282]
[1748883306048,8.7749,2548.7,2548.1,3.9244647]
[1748883306269,8.7749,2548.7,2548.1,0.39244647]
[1748883306447,8.7749,2548.7,2548.4,3.92396231]
[1748883306651,8.7749,2548.7,2548.5,3.92384703]
[1748883307156,8.7749,2548.7,2548.4,3.92394879]
[1748883307358,0.7749,2548.7,2548.6,3.92372282]
[1748883307565,0.7749,2548.7,2548.3,3.92407742]
[1748883307873,0.7749,2548.7,2548.4,3.92395772]
[1748883308376,10.07970072,2548.5,2547.7,0.8024]
[1748883308573,10.07970072,2548.5,2548.4,3.92403076]
[1748883309089,10.07970072,2548.5,2548.3,3.92412103]
[1748883309291,0.7749,2548.7,2548.4,3.92403076]
[1748883309462,0.7749,2548.7,2548.1,3.92449275]
[1748883309784,0.7749,2548.7,2548.4,3.92395079]
[1748883310081,0.7749,2548.7,2548.3,3.92410952]
[1748883310378,0.7749,2548.7,2548.3,3.92409246]
[1748883310576,0.7749,2548.7,2548.4,3.92401787]
[1748883310997,0.7749,2548.7,2548.3,3.92407571]
[1748883311285,0.7749,2548.7,2548.5,3.92386174]
[1748883311578,0.7749,2548.7,2548.3,3.92410664]
[1748883311885,3.92404554,2548.4,2547.9,3.92467974]
[1748883312095,10.07970072,2548.5,2548.2,3.92432696]
[1748883312392,10.07970072,2548.5,2548.2,3.9242688]
[1748883312597,14.00361205,2548.5,2547.7,9.43750527]
[1748883312739,3.9243144,2548.3,2547.7,5.5124]
[1748883313080,10.07970072,2548.1,2547.7,3.92504191]
[1748883313239,10.07970072,2548.1,2547.8,3.9249267]
[1748883313444,0.7772,2548.0,2547.1,0.02]
[1748883313667,0.7772,2548.0,2547.2,0.8261]
[1748883313871,0.7772,2548.0,2547.9,3.92480081]
[1748883314072,0.7772,2548.0,2547.8,3.92486439]
[1748883314755,0.7772,2548.0,2547.9,3.92480081]
[1748883314956,0.7772,2548.0,2547.8,3.92489276]
[1748883315165,8.7744,2548.4,2548.2,3.92433874]
[1748883315342,8.7744,2548.4,2548.1,3.92440571]
[1748883315542,8.7744,2548.4,2548.0,3.92458024]
[1748883315837,8.7744,2548.4,2548.2,3.92426631]
[1748883316041,8.7744,2548.4,2547.7,0.8163]
[1748883316244,8.7744,2548.4,2548.0,3.92456032]
[1748883316566,8.0,2548.2,2547.4,4.74173014]
[1748883316885,11.92441441,2548.2,2547.4,0.8163]
[1748883317079,8.0,2548.2,2547.8,3.9249497]
[1748883317455,11.92435944,2548.2,2547.8,3.9249497]
[1748883317663,11.92435944,2548.2,2547.6,3.92523951]
[1748883317664,11.92435944,2548.2,2547.7,3.92502076]
[1748883317985,3.92450575,2548.1,2547.6,3.92519832]
[1748883318278,0.8222,2548.0,2547.5,0.00951952]
[1748883318580,0.8222,2548.0,2547.8,3.92491556]
[1748883318781,0.8222,2548.0,2547.2,0.7795]
[1748883318946,0.8222,2548.0,2547.9,3.92480081]
[1748883319580,0.8222,2548.0,2547.8,3.92486568]
[1748883319768,0.8222,2548.0,2547.9,3.92480081]
[1748883320079,0.8222,2548.0,2547.8,3.92490603]
[1748883320288,0.8222,2548.0,2547.2,0.7795]
[1748883320583,0.8222,2548.0,2547.8,3.92487881]
[1748883321200,0.8222,2548.0,2547.7,3.92502819]
[1748883321405,8.0,2548.2,2547.8,3.92495179]
[1748883321680,0.7865,2548.2,2547.8,3.92483911]
[1748883322059,0.83555668,2548.2,2547.8,3.92483911]
[1748883323386,3.5119165,2548.2,2547.4,4.71]
[1748883323585,3.5119165,2548.2,2547.8,3.92495051]
[1748883323750,3.5119165,2548.2,2547.9,3.92478475]
[1748883323952,3.46285982,2548.2,2547.9,3.92478475]
[1748883324153,3.46285982,2548.2,2548.0,3.92464269]
[1748883324363,0.7865,2548.2,2548.0,3.92464269]
[1748883324788,0.7865,2548.2,2548.1,3.92449275]
[1748883325164,14.00322192,2548.8,2548.4,3.92391861]
[1748883325165,0.7512,2548.5,2548.4,3.92391861]
[1748883325485,0.7512,2548.5,2548.0,3.92452782]
[1748883325707,0.7512,2548.5,2548.1,3.92442941]
[1748883325851,0.7512,2548.5,2548.2,3.92433523]
[1748883326050,0.7512,2548.5,2548.0,3.92452782]
[1748883326364,0.7512,2548.5,2548.1,3.92439874]
[1748883326592,0.7721,2548.5,2548.4,3.9239487]
[1748883327754,8.0,2548.7,2548.6,3.92363649]
[1748883328349,8.0,2548.7,2548.5,3.92381025]
[1748883328549,8.0,2548.7,2548.6,3.92372282]
[1748883328777,0.7619,2549.0,2548.8,3.92334224]
[1748883328980,8.7619,2549.0,2548.7,3.9234996]
[1748883329199,0.7619,2549.0,2548.5,0.00949069]
[1748883329390,0.7619,2549.0,2548.8,3.92333091]
[1748883329682,8.7619,2549.0,2548.9,3.92326101]
[1748883329891,8.7619,2549.0,2548.3,4.75027952]
[1748883330064,8.7619,2549.0,2548.7,3.9234345]
[1748883330253,8.7619,2549.0,2548.8,3.92339147]
[1748883330684,8.7619,2549.0,2548.8,3.92335063]
[1748883331060,8.7619,2549.0,2548.7,3.92349802]
[1748883331261,8.7619,2549.0,2548.8,3.92338439]
[1748883331462,8.0,2549.0,2548.9,3.92326101]
[1748883331672,8.0,2549.3,2549.0,3.9231071]
[1748883331848,8.04903863,2549.3,2549.1,3.92292602]
[1748883332787,8.0,2549.3,2549.1,3.92292602]
[1748883333003,8.0,2549.3,2549.0,3.92302345]
[1748883333152,8.04903554,2549.3,2549.0,3.92302345]
[1748883333778,9.40694003,2549.1,2548.4,4.71]
[1748883334004,9.40694003,2549.1,2548.8,3.92340656]
[1748883334214,9.40694003,2549.1,2548.9,3.92321992]
[1748883334437,9.40694003,2549.2,2549.0,3.9230859]
[1748883334727,9.40694003,2549.2,2548.9,3.92326101]
[1748883335028,8.04903784,2549.1,2548.5,4.71]
[1748883335234,8.0,2549.1,2548.9,3.92325188]
[1748883336279,8.0,2549.1,2548.5,4.71]
[1748883336280,8.0,2549.1,2549.0,3.9231071]
[1748883337044,9.40694003,2549.1,2548.9,3.92316862]
[1748883337229,17.40694003,2549.1,2549.0,3.9231071]
[1748883338615,17.40694003,2549.1,2548.5,8.63387421]
[1748883338815,17.40694003,2549.1,2549.0,3.9231071]
[1748883339333,17.40694003,2549.1,2548.9,3.92317247]
[1748883339701,8.0,2549.1,2549.0,3.9231071]
[1748883339898,8.0,2549.1,2548.6,0.59055387]
[1748883340237,0.8163,2548.9,2548.7,3.92350338]
[1748883341287,0.8163,2548.9,2548.8,3.92341494]
[1748883341988,8.0,2549.0,2548.9,3.92326101]
[1748883342375,8.0,2549.0,2548.7,3.92353032]
[1748883342596,8.0,2549.0,2548.8,3.92340754]
[1748883342597,9.40694003,2548.9,2548.8,3.92340754]
[1748883343995,8.0,2549.0,2548.9,3.92326101]
[1748883345194,8.7722,2549.3,2549.1,3.9228169]
[1748883345739,8.7722,2549.3,2549.0,3.92302058]
[1748883346613,8.7722,2549.3,2549.1,3.92292774]
[1748883346817,8.7722,2549.3,2549.0,3.92301607]
[1748883346992,8.7722,2549.3,2548.5,4.71]
[1748883347319,9.40694003,2549.1,2548.9,3.92316399]
[1748883347727,9.40694003,2549.1,2549.0,3.9231071]
[1748883348081,8.7722,2549.3,2549.2,3.9227993]
[1748883348596,0.19982489,2549.6,2549.3,3.92263683]
[1748883348597,8.0,2549.5,2549.3,3.92263683]
[1748883349331,8.0,2549.5,2548.9,3.92325877]
[1748883349494,8.0,2549.5,2549.3,3.92262225]
[1748883349828,8.0,2549.5,2549.3,3.92264504]
[1748883350205,8.0,2549.5,2549.4,3.92249156]
[1748883350587,0.02,2549.9,2549.8,3.92187622]
[1748883351992,0.02,2549.9,2549.8,3.93131987]
[1748883352198,0.02,2549.9,2549.8,4.7166516]
[1748883352734,0.02,2549.9,2549.8,5.5398516]
[1748883353091,0.02,2549.9,2549.8,5.53040795]
[1748883354325,0.02,2549.9,2549.8,5.53983826]
[1748883354728,0.02,2549.9,2549.8,5.53040795]
[1748883355528,0.02,2549.9,2549.8,5.53983841]
[1748883355705,0.02,2549.9,2549.8,5.53040795]
[1748883355907,0.02,2549.9,2549.8,4.70720795]
[1748883356427,0.02,2549.9,2549.8,4.71665179]
[1748883356626,0.02,2549.9,2549.8,4.70720795]
[1748883358822,0.02,2549.9,2549.8,3.93132017]
[1748883359132,0.02,2549.9,2549.8,3.92187622]
[1748883360755,0.02,2549.9,2549.8,4.73987622]